[Event "Live Chess"]
[Site "Chess.com"]
[Date "2023.09.16"]
[Round "-"]
[White "kadabraxadrez"]
[Black "Timsoso"]
[Result "1-0"]
[WhiteElo "948"]
[BlackElo "250"]
[TimeControl "900+5"]
[EndTime "7:20:22 PDT"]
[Termination "kadabraxadrez venceu por xeque-mate"]

1. e4 {[%clk 0:15:01.8]} 1... e5 {[%clk 0:14:54]} 2. Nf3 {[%clk 0:15:04.1]} 2...
Nc6 {[%clk 0:14:52.2]} 3. Bc4 {[%clk 0:15:05.3]} 3... Bb4 {[%clk 0:14:16.1]} 4.
Nc3 {[%clk 0:14:57.4]} 4... Bd6 {[%clk 0:14:12.1]} 5. O-O {[%clk 0:14:39.9]}
5... Nf6 {[%clk 0:14:00.3]} 6. d3 {[%clk 0:14:40.5]} 6... Nb4 {[%clk 0:13:58.7]}
7. a3 {[%clk 0:14:39.7]} 7... Nc6 {[%clk 0:13:49.4]} 8. d4 {[%clk 0:14:05.4]}
8... Nxd4 {[%clk 0:13:48.8]} 9. Nxd4 {[%clk 0:14:06.6]} 9... exd4 {[%clk
0:13:52.2]} 10. Qxd4 {[%clk 0:14:08.1]} 10... c5 {[%clk 0:13:27.5]} 11. Qd3
{[%clk 0:14:00.4]} 11... O-O {[%clk 0:13:12.7]} 12. Qxd6 {[%clk 0:13:59.5]}
12... Ne8 {[%clk 0:13:11.7]} 13. Qg3 {[%clk 0:14:01.4]} 13... Qf6 {[%clk
0:13:02.7]} 14. e5 {[%clk 0:13:35.3]} 14... Qb6 {[%clk 0:12:45.9]} 15. e6 {[%clk
0:13:23.6]} 15... dxe6 {[%clk 0:12:43.6]} 16. b4 {[%clk 0:13:15.5]} 16... cxb4
{[%clk 0:12:40.6]} 17. axb4 {[%clk 0:13:19]} 17... Qxb4 {[%clk 0:12:38.3]} 18.
Ba3 {[%clk 0:13:02]} 18... Qxc4 {[%clk 0:12:36.5]} 19. Bxf8 {[%clk 0:13:03]}
19... Kxf8 {[%clk 0:12:30.8]} 20. Qd3 {[%clk 0:12:58.2]} 20... Qc7 {[%clk
0:12:23.9]} 21. Ne4 {[%clk 0:12:27.7]} 21... Nd6 {[%clk 0:12:21.7]} 22. Nxd6
{[%clk 0:12:28.5]} 22... Qb8 {[%clk 0:12:13.8]} 23. Nxc8 {[%clk 0:12:24.7]}
23... Qxc8 {[%clk 0:12:15.3]} 24. Qa3+ {[%clk 0:12:23.6]} 24... Kg8 {[%clk
0:12:14.3]} 25. Qd3 {[%clk 0:12:19.6]} 25... h6 {[%clk 0:12:12.9]} 26. c4 {[%clk
0:12:18.7]} 26... Qe8 {[%clk 0:12:08]} 27. Qc2 {[%clk 0:12:06.2]} 27... Rd8
{[%clk 0:12:07.8]} 28. Rfd1 {[%clk 0:12:04.7]} 28... a6 {[%clk 0:12:03.6]} 29.
Rxd8 {[%clk 0:12:05.8]} 29... Qxd8 {[%clk 0:12:05.2]} 30. Rd1 {[%clk 0:12:06.3]}
30... Qh4 {[%clk 0:12:01.4]} 31. g3 {[%clk 0:11:55.6]} 31... Qe7 {[%clk
0:11:50.5]} 32. c5 {[%clk 0:11:53.2]} 32... b5 {[%clk 0:11:47.5]} 33. c6 {[%clk
0:11:54]} 33... Qa3 {[%clk 0:11:44.7]} 34. c7 {[%clk 0:11:55.4]} 34... b4 {[%clk
0:11:48.2]} 35. c8=Q# {[%clk 0:11:58]} 1-0

[Event "Live Chess"]
[Site "Chess.com"]
[Date "2023.09.16"]
[Round "-"]
[White "GigiAlmeidaXadrez"]
[Black "Enzoellobo"]
[Result "1-0"]
[WhiteElo "1074"]
[BlackElo "172"]
[TimeControl "900+5"]
[EndTime "7:20:23 PDT"]
[Termination "GigiAlmeidaXadrez venceu por xeque-mate"]

1. e4 {[%clk 0:14:57.8]} 1... e5 {[%clk 0:15:01.4]} 2. Nf3 {[%clk 0:15:00]} 2...
d5 {[%clk 0:15:01]} 3. exd5 {[%clk 0:14:57.1]} 3... Nf6 {[%clk 0:14:56.9]} 4.
Nxe5 {[%clk 0:14:46.3]} 4... Bd6 {[%clk 0:14:56.1]} 5. Nf3 {[%clk 0:14:43]} 5...
O-O {[%clk 0:14:55.9]} 6. Nc3 {[%clk 0:14:40.1]} 6... Re8+ {[%clk 0:14:59]} 7.
Be2 {[%clk 0:14:42]} 7... Qe7 {[%clk 0:14:57.5]} 8. O-O {[%clk 0:14:40]} 8...
Bf4 {[%clk 0:14:48.2]} 9. h3 {[%clk 0:14:21.9]} 9... Nh5 {[%clk 0:14:51.5]} 10.
Re1 {[%clk 0:14:08.6]} 10... Bxh3 {[%clk 0:14:48.1]} 11. gxh3 {[%clk 0:14:03.7]}
11... Rd8 {[%clk 0:14:39.2]} 12. Bc4 {[%clk 0:13:51.8]} 12... Rd6 {[%clk
0:14:37.1]} 13. Rxe7 {[%clk 0:13:46.4]} 13... Kf8 {[%clk 0:14:33.1]} 14. Qe1
{[%clk 0:13:41.1]} 14... Rd8 {[%clk 0:14:32.5]} 15. Nb5 {[%clk 0:13:25.2]} 15...
Nd7 {[%clk 0:14:30]} 16. d3 {[%clk 0:13:06]} 16... a5 {[%clk 0:14:23]} 17. Bxf4
{[%clk 0:12:55.5]} 17... Ra6 {[%clk 0:14:26.6]} 18. Nxc7 {[%clk 0:12:36.4]}
18... Re6 {[%clk 0:14:21.9]} 19. Nxe6+ {[%clk 0:12:35.1]} 19... Kxe7 {[%clk
0:14:04.6]} 20. Nxd8+ {[%clk 0:12:30.9]} 20... Kxd8 {[%clk 0:14:07.4]} 21. Qe2
{[%clk 0:12:14.9]} 21... Nxf4 {[%clk 0:14:07]} 22. Qe4 {[%clk 0:12:09.3]} 22...
Nxh3+ {[%clk 0:14:06.4]} 23. Kg2 {[%clk 0:12:10.8]} 23... Nxf2 {[%clk
0:13:52.9]} 24. Kxf2 {[%clk 0:12:11.1]} 24... h5 {[%clk 0:13:49.9]} 25. Re1
{[%clk 0:12:08.3]} 25... g5 {[%clk 0:13:50]} 26. Nxg5 {[%clk 0:12:07.3]} 26...
Nc5 {[%clk 0:13:50.7]} 27. Nxf7+ {[%clk 0:11:56.2]} 27... Kd7 {[%clk 0:13:52.6]}
28. Qe7+ {[%clk 0:11:52.9]} 28... Kc8 {[%clk 0:13:52.6]} 29. Qd8# {[%clk
0:11:54.7]} 1-0

[Event "Live Chess"]
[Site "Chess.com"]
[Date "2023.09.16"]
[Round "-"]
[White "Dfran2015"]
[Black "DaviLucasMoraisLima"]
[Result "0-1"]
[WhiteElo "572"]
[BlackElo "1218"]
[TimeControl "900+5"]
[EndTime "7:27:25 PDT"]
[Termination "DaviLucasMoraisLima venceu por xeque-mate"]

1. e4 {[%clk 0:14:59.5]} 1... e5 {[%clk 0:15:03.4]} 2. Nf3 {[%clk 0:15:03.5]}
2... d6 {[%clk 0:15:06.5]} 3. Bc4 {[%clk 0:15:06.7]} 3... Bg4 {[%clk 0:15:04.9]}
4. d3 {[%clk 0:15:06.1]} 4... Nc6 {[%clk 0:15:07.3]} 5. Bg5 {[%clk 0:15:04.6]}
5... f6 {[%clk 0:15:09.1]} 6. Be3 {[%clk 0:15:07.1]} 6... Nd4 {[%clk 0:14:58.7]}
7. Bxd4 {[%clk 0:15:07]} 7... exd4 {[%clk 0:15:00.2]} 8. h3 {[%clk 0:15:08.7]}
8... Bxf3 {[%clk 0:15:00.5]} 9. Qxf3 {[%clk 0:15:10.2]} 9... Qe7 {[%clk
0:15:01.7]} 10. O-O {[%clk 0:15:04.9]} 10... O-O-O {[%clk 0:14:53.3]} 11. c3
{[%clk 0:15:02.6]} 11... dxc3 {[%clk 0:14:54.2]} 12. Nxc3 {[%clk 0:15:05.8]}
12... Qe5 {[%clk 0:14:38.5]} 13. Qf5+ {[%clk 0:15:05.3]} 13... Qxf5 {[%clk
0:14:40.8]} 14. exf5 {[%clk 0:15:08.1]} 14... Ne7 {[%clk 0:14:42.5]} 15. Be6+
{[%clk 0:15:09.5]} 15... Kb8 {[%clk 0:14:44.4]} 16. Rae1 {[%clk 0:15:03.2]}
16... g6 {[%clk 0:14:41.4]} 17. fxg6 {[%clk 0:15:01.5]} 17... Nxg6 {[%clk
0:14:42.2]} 18. Bf5 {[%clk 0:15:03]} 18... Nh4 {[%clk 0:14:41.7]} 19. Bg4 {[%clk
0:14:47.4]} 19... f5 {[%clk 0:14:42.9]} 20. Bh5 {[%clk 0:14:39.4]} 20... Rg8
{[%clk 0:14:43.5]} 21. Bf7 {[%clk 0:14:34.5]} 21... Rg7 {[%clk 0:14:45.1]} 22.
Bd5 {[%clk 0:14:34]} 22... c6 {[%clk 0:14:44.8]} 23. Bc4 {[%clk 0:14:32.9]}
23... Nf3+ {[%clk 0:14:46.1]} 24. Kh1 {[%clk 0:14:31.2]} 24... Nxe1 {[%clk
0:14:47.6]} 25. Rxe1 {[%clk 0:14:35.5]} 25... d5 {[%clk 0:14:49.2]} 26. Bb3
{[%clk 0:14:35.4]} 26... Bc5 {[%clk 0:14:50]} 27. Bc2 {[%clk 0:14:18.1]} 27...
Rdg8 {[%clk 0:14:51.5]} 28. d4 {[%clk 0:13:57.8]} 28... Bxd4 {[%clk 0:14:52.2]}
29. Bxf5 {[%clk 0:13:58.8]} 29... Bxf2 {[%clk 0:14:52.8]} 30. Re2 {[%clk
0:13:55.8]} 30... Rg6 {[%clk 0:14:54.3]} 31. Bxg6 {[%clk 0:13:57.3]} 31... Bg3
{[%clk 0:14:50.8]} 32. Bxh7 {[%clk 0:13:55.1]} 32... Rf8 {[%clk 0:14:53.2]} 33.
Kg1 {[%clk 0:13:33.9]} 33... Rf7 {[%clk 0:14:42.7]} 34. Re8+ {[%clk 0:13:29.6]}
34... Kc7 {[%clk 0:14:45]} 35. Bg6 {[%clk 0:13:29.7]} 35... Rf6 {[%clk
0:14:43.5]} 36. Bd3 {[%clk 0:13:24.5]} 36... Bf2+ {[%clk 0:14:31.7]} 37. Kh2
{[%clk 0:13:24.7]} 37... Bc5 {[%clk 0:14:29.2]} 38. Kg3 {[%clk 0:13:26.4]} 38...
Bd6+ {[%clk 0:14:30]} 39. Kg4 {[%clk 0:13:27.3]} 39... Rf4+ {[%clk 0:14:31.7]}
40. Kg5 {[%clk 0:13:26.8]} 40... Rf2 {[%clk 0:14:32.3]} 41. g4 {[%clk
0:13:23.1]} 41... Bf4+ {[%clk 0:14:28.4]} 42. Kf5 {[%clk 0:13:12.9]} 42... Bd2+
{[%clk 0:14:29.2]} 43. Ke5 {[%clk 0:13:15.1]} 43... Bf4+ {[%clk 0:14:28.6]} 44.
Ke6 {[%clk 0:13:14.7]} 44... Rf3 {[%clk 0:14:21.6]} 45. Re7+ {[%clk 0:13:13.5]}
45... Kb6 {[%clk 0:14:24]} 46. Bf5 {[%clk 0:13:03.4]} 46... Re3+ {[%clk
0:14:24]} 47. Kf6 {[%clk 0:13:00]} 47... Bg5+ {[%clk 0:14:22.7]} 48. Kf7 {[%clk
0:12:57.2]} 48... Rxe7+ {[%clk 0:14:24.7]} 49. Kg6 {[%clk 0:13:00.9]} 49... Bc1
{[%clk 0:14:24.8]} 50. Na4+ {[%clk 0:12:55.8]} 50... Kc7 {[%clk 0:14:12.6]} 51.
h4 {[%clk 0:12:43.8]} 51... b5 {[%clk 0:14:14.2]} 52. Nc5 {[%clk 0:12:44]} 52...
Bxb2 {[%clk 0:14:15.8]} 53. h5 {[%clk 0:12:44.7]} 53... Rg7+ {[%clk 0:14:18.5]}
54. Kh6 {[%clk 0:12:40.9]} 54... Rg8 {[%clk 0:14:09.7]} 55. Bh7 {[%clk
0:12:33.9]} 55... Rh8 {[%clk 0:14:07.2]} 56. Nd3 {[%clk 0:12:22.1]} 56... Bd4
{[%clk 0:14:08]} 57. g5 {[%clk 0:12:19.2]} 57... Re8 {[%clk 0:14:00.8]} 58. g6
{[%clk 0:12:08.4]} 58... Re7 {[%clk 0:13:50.2]} 59. Nf4 {[%clk 0:11:58.3]} 59...
Be3 {[%clk 0:13:52.3]} 60. g7 {[%clk 0:11:39.7]} 60... Bxf4+ {[%clk 0:13:53.4]}
61. Kg6 {[%clk 0:11:43.9]} 61... Rxg7+ {[%clk 0:13:36.5]} 62. Kxg7 {[%clk
0:11:46.2]} 62... c5 {[%clk 0:13:38.7]} 63. Kf6 {[%clk 0:11:44.1]} 63... d4
{[%clk 0:13:40.4]} 64. Kf5 {[%clk 0:11:47.8]} 64... Bd2 {[%clk 0:13:41]} 65. Ke4
{[%clk 0:11:49.5]} 65... c4 {[%clk 0:13:43.3]} 66. Bg8 {[%clk 0:11:51.2]} 66...
c3 {[%clk 0:13:45.9]} 67. Kxd4 {[%clk 0:11:53.3]} 67... c2 {[%clk 0:13:49.7]}
68. Kd3 {[%clk 0:11:55]} 68... c1=Q {[%clk 0:13:52.8]} 69. Ke2 {[%clk
0:11:57.6]} 69... Qe1+ {[%clk 0:13:55]} 70. Kd3 {[%clk 0:12:00.6]} 70... Qe3+
{[%clk 0:13:54.7]} 71. Kc2 {[%clk 0:12:02.4]} 71... Qh6 {[%clk 0:13:46.6]} 72.
Bf7 {[%clk 0:11:38.8]} 72... Kd7 {[%clk 0:13:39.4]} 73. Bg6 {[%clk 0:11:38.8]}
73... Kc6 {[%clk 0:13:36.1]} 74. Kb3 {[%clk 0:11:42.6]} 74... Qe3+ {[%clk
0:13:32.6]} 75. Kc2 {[%clk 0:11:40.7]} 75... Qc3+ {[%clk 0:13:34.5]} 76. Kd1
{[%clk 0:11:41.7]} 76... Qc1+ {[%clk 0:13:36.2]} 77. Ke2 {[%clk 0:11:45.1]}
77... Qe1+ {[%clk 0:13:38.4]} 78. Kd3 {[%clk 0:11:48.2]} 78... Qe3+ {[%clk
0:13:34.8]} 79. Kc2 {[%clk 0:11:51.6]} 79... a5 {[%clk 0:13:33.4]} 80. Kd1
{[%clk 0:11:38.4]} 80... b4 {[%clk 0:13:33.8]} 81. h6 {[%clk 0:11:35.7]} 81...
Qxh6 {[%clk 0:13:35.2]} 82. Be8+ {[%clk 0:11:37.6]} 82... Kc5 {[%clk 0:13:36.5]}
83. Ba4 {[%clk 0:11:38.7]} 83... Qe6 {[%clk 0:13:15.1]} 84. Bb3 {[%clk
0:11:36.5]} 84... Qe1+ {[%clk 0:13:12.1]} 85. Kc2 {[%clk 0:11:37.5]} 85... Kd4
{[%clk 0:13:07.3]} 86. Kb2 {[%clk 0:11:35.4]} 86... Qc1# {[%clk 0:13:08.6]} 0-1

[Event "Live Chess"]
[Site "Chess.com"]
[Date "2023.09.16"]
[Round "-"]
[White "Enzoellobo"]
[Black "DaviLucasMoraisLima"]
[Result "0-1"]
[WhiteElo "172"]
[BlackElo "1218"]
[TimeControl "900+5"]
[EndTime "7:30:32 PDT"]
[Termination "DaviLucasMoraisLima venceu por xeque-mate"]

1. e4 {[%clk 0:14:59.8]} 1... e5 {[%clk 0:15:02.6]} 2. d4 {[%clk 0:15:03.2]}
2... exd4 {[%clk 0:15:05.6]} 3. Bc4 {[%clk 0:15:04.6]} 3... Nc6 {[%clk
0:15:04.1]} 4. Qh5 {[%clk 0:15:06.4]} 4... g6 {[%clk 0:15:03]} 5. Qh4 {[%clk
0:15:05.8]} 5... Qxh4 {[%clk 0:15:04.8]} 6. Nh3 {[%clk 0:15:05.5]} 6... Qxe4+
{[%clk 0:15:06.3]} 7. Be3 {[%clk 0:14:49.9]} 7... dxe3 {[%clk 0:15:08.2]} 8.
fxe3 {[%clk 0:14:53.2]} 8... Qxc4 {[%clk 0:15:09.9]} 9. b3 {[%clk 0:14:54.6]}
9... Qxc2 {[%clk 0:15:12.6]} 10. Nf2 {[%clk 0:14:53.5]} 10... Nb4 {[%clk
0:15:10.9]} 11. O-O {[%clk 0:14:55.8]} 11... Qb2 {[%clk 0:15:12.9]} 12. Nc3
{[%clk 0:14:51.8]} 12... Qxc3 {[%clk 0:15:11.8]} 13. Nd1 {[%clk 0:14:52.2]}
13... Qc2 {[%clk 0:14:56.1]} 14. e4 {[%clk 0:14:50.3]} 14... b6 {[%clk
0:14:57.6]} 15. g4 {[%clk 0:14:53]} 15... Bb7 {[%clk 0:14:59.5]} 16. h4 {[%clk
0:14:48]} 16... Bxe4 {[%clk 0:15:01.6]} 17. g5 {[%clk 0:14:51]} 17... Qg2#
{[%clk 0:15:03.4]} 0-1

[Event "Live Chess"]
[Site "Chess.com"]
[Date "2023.09.16"]
[Round "-"]
[White "Timsoso"]
[Black "GigiAlmeidaXadrez"]
[Result "0-1"]
[WhiteElo "274"]
[BlackElo "1074"]
[TimeControl "900+5"]
[EndTime "7:30:40 PDT"]
[Termination "GigiAlmeidaXadrez venceu por xeque-mate"]

1. e4 {[%clk 0:14:59.9]} 1... c5 {[%clk 0:15:03.6]} 2. d4 {[%clk 0:14:59.9]}
2... cxd4 {[%clk 0:15:05.4]} 3. Nf3 {[%clk 0:15:02.9]} 3... Nc6 {[%clk
0:15:00.5]} 4. Nxd4 {[%clk 0:15:01.3]} 4... Nxd4 {[%clk 0:14:59.7]} 5. Qxd4
{[%clk 0:15:03.7]} 5... d6 {[%clk 0:14:59.9]} 6. Qe3 {[%clk 0:14:58.7]} 6... Nf6
{[%clk 0:14:54.8]} 7. Bd2 {[%clk 0:14:58.6]} 7... g6 {[%clk 0:14:50.1]} 8. Nc3
{[%clk 0:14:56.3]} 8... Bg7 {[%clk 0:14:45.2]} 9. O-O-O {[%clk 0:14:52]} 9...
O-O {[%clk 0:14:43.4]} 10. e5 {[%clk 0:14:46.1]} 10... dxe5 {[%clk 0:14:32.8]}
11. Re1 {[%clk 0:14:48.2]} 11... Ng4 {[%clk 0:14:19.6]} 12. Qe4 {[%clk
0:14:39.4]} 12... Bf5 {[%clk 0:14:14.1]} 13. Qd5 {[%clk 0:14:33]} 13... Qc7
{[%clk 0:13:40.6]} 14. Re4 {[%clk 0:14:22.9]} 14... Bxe4 {[%clk 0:13:38.2]} 15.
Qxe4 {[%clk 0:14:24.3]} 15... Nf6 {[%clk 0:13:40.2]} 16. Bf4 {[%clk 0:14:18.6]}
16... Nxe4 {[%clk 0:13:40.3]} 17. Nxe4 {[%clk 0:14:14.9]} 17... Rac8 {[%clk
0:13:37.5]} 18. Bd3 {[%clk 0:14:10]} 18... Rfd8 {[%clk 0:13:31.1]} 19. Bg5
{[%clk 0:13:57.4]} 19... Rxd3 {[%clk 0:13:28.8]} 20. Kb1 {[%clk 0:13:40.8]}
20... Qxc2+ {[%clk 0:13:23.6]} 21. Ka1 {[%clk 0:13:37]} 21... Rd1+ {[%clk
0:13:22.4]} 22. Bc1 {[%clk 0:13:27]} 22... Qxc1# {[%clk 0:13:17.5]} 0-1

[Event "Live Chess"]
[Site "Chess.com"]
[Date "2023.09.16"]
[Round "-"]
[White "DaviLucasMoraisLima"]
[Black "Timsoso"]
[Result "1-0"]
[WhiteElo "1218"]
[BlackElo "274"]
[TimeControl "900+5"]
[EndTime "7:34:40 PDT"]
[Termination "DaviLucasMoraisLima venceu por xeque-mate"]

1. e4 {[%clk 0:14:48.8]} 1... e5 {[%clk 0:15:02.6]} 2. Bc4 {[%clk 0:14:49.9]}
2... Nf6 {[%clk 0:15:02.9]} 3. Nc3 {[%clk 0:14:51.3]} 3... Bc5 {[%clk
0:15:01.3]} 4. Nf3 {[%clk 0:14:53.1]} 4... d6 {[%clk 0:14:53.5]} 5. Ng5 {[%clk
0:14:55.2]} 5... d5 {[%clk 0:14:56.6]} 6. Nxd5 {[%clk 0:14:58.2]} 6... Qd6
{[%clk 0:14:49]} 7. Nxf6+ {[%clk 0:14:57.5]} 7... Qxf6 {[%clk 0:14:47.4]} 8. Nf3
{[%clk 0:14:53.6]} 8... Bxf2+ {[%clk 0:14:38.9]} 9. Kxf2 {[%clk 0:14:54.6]} 9...
O-O {[%clk 0:14:18.6]} 10. d3 {[%clk 0:14:53.6]} 10... Qe7 {[%clk 0:13:59.3]}
11. Bg5 {[%clk 0:14:52.8]} 11... Qe8 {[%clk 0:14:00.5]} 12. Nd2 {[%clk
0:14:49.3]} 12... Kh8 {[%clk 0:13:58.4]} 13. Qh5 {[%clk 0:14:49]} 13... g6
{[%clk 0:14:00.1]} 14. Qh6 {[%clk 0:14:47.6]} 14... Rg8 {[%clk 0:14:01.7]} 15.
Bf6+ {[%clk 0:14:49.7]} 15... Rg7 {[%clk 0:13:55.2]} 16. Qxg7# {[%clk
0:14:52.1]} 1-0

[Event "Live Chess"]
[Site "Chess.com"]
[Date "2023.09.16"]
[Round "-"]
[White "kadabraxadrez"]
[Black "RenatoMizuki"]
[Result "1-0"]
[WhiteElo "989"]
[BlackElo "1141"]
[TimeControl "900+5"]
[EndTime "7:37:58 PDT"]
[Termination "kadabraxadrez venceu por xeque-mate"]

1. e4 {[%clk 0:15:03.2]} 1... e5 {[%clk 0:15:01.6]} 2. Nf3 {[%clk 0:15:04.9]}
2... Nc6 {[%clk 0:15:03.3]} 3. Bc4 {[%clk 0:15:07.3]} 3... Bc5 {[%clk
0:15:05.4]} 4. O-O {[%clk 0:15:07]} 4... Nf6 {[%clk 0:15:04.3]} 5. d3 {[%clk
0:15:09.5]} 5... O-O {[%clk 0:15:04.1]} 6. Nc3 {[%clk 0:15:09.3]} 6... a6 {[%clk
0:14:49.8]} 7. a3 {[%clk 0:15:06.9]} 7... b5 {[%clk 0:14:39.4]} 8. b4 {[%clk
0:14:32.5]} 8... bxc4 {[%clk 0:14:33.4]} 9. bxc5 {[%clk 0:14:34.9]} 9... cxd3
{[%clk 0:14:37.7]} 10. Qxd3 {[%clk 0:14:37.6]} 10... Bb7 {[%clk 0:14:35.8]} 11.
Nd5 {[%clk 0:14:25.3]} 11... Nxd5 {[%clk 0:14:30.9]} 12. exd5 {[%clk 0:14:28.4]}
12... Na7 {[%clk 0:14:25.5]} 13. Nxe5 {[%clk 0:14:24.3]} 13... Re8 {[%clk
0:14:18.7]} 14. Qd4 {[%clk 0:13:39.8]} 14... Nb5 {[%clk 0:14:16.8]} 15. Qb2
{[%clk 0:12:44.5]} 15... Bxd5 {[%clk 0:14:13.3]} 16. Rd1 {[%clk 0:12:44.4]}
16... Bc6 {[%clk 0:14:13.6]} 17. Bf4 {[%clk 0:12:26.7]} 17... f6 {[%clk
0:14:04.3]} 18. Nxc6 {[%clk 0:12:27.2]} 18... dxc6 {[%clk 0:13:59.6]} 19. Rxd8
{[%clk 0:12:21.6]} 19... Rexd8 {[%clk 0:14:03.5]} 20. f3 {[%clk 0:12:20.4]}
20... Rd5 {[%clk 0:14:03]} 21. c4 {[%clk 0:11:59.4]} 21... Rxc5 {[%clk
0:13:37.9]} 22. cxb5 {[%clk 0:12:01.7]} 22... Rxb5 {[%clk 0:13:42.5]} 23. Qa2+
{[%clk 0:12:01.3]} 23... Kh8 {[%clk 0:13:44.5]} 24. Qe2 {[%clk 0:12:00.1]} 24...
Rb7 {[%clk 0:13:34.9]} 25. Re1 {[%clk 0:11:53]} 25... h6 {[%clk 0:13:28]} 26.
Rc1 {[%clk 0:11:33.6]} 26... c5 {[%clk 0:13:24.9]} 27. Qe4 {[%clk 0:10:49.3]}
27... Rbb8 {[%clk 0:13:23.4]} 28. Bxc7 {[%clk 0:10:47.7]} 28... Re8 {[%clk
0:13:27.4]} 29. Qc6 {[%clk 0:10:42.1]} 29... c4 {[%clk 0:13:17.7]} 30. Qxc4
{[%clk 0:10:41.4]} 30... h5 {[%clk 0:12:58.7]} 31. g4 {[%clk 0:10:37.5]} 31...
hxg4 {[%clk 0:12:55.2]} 32. fxg4 {[%clk 0:10:41]} 32... Rec8 {[%clk 0:12:50.1]}
33. Qf1 {[%clk 0:10:40.1]} 33... Ra7 {[%clk 0:12:49.8]} 34. Bb6 {[%clk
0:10:39.4]} 34... Rxc1 {[%clk 0:12:49.2]} 35. Qxc1 {[%clk 0:10:42.1]} 35... Rf7
{[%clk 0:12:38.9]} 36. h4 {[%clk 0:10:44.1]} 36... Kh7 {[%clk 0:12:29.3]} 37.
Qc2+ {[%clk 0:10:39.4]} 37... g6 {[%clk 0:12:30]} 38. h5 {[%clk 0:10:41.6]}
38... Rg7 {[%clk 0:12:30.2]} 39. hxg6+ {[%clk 0:10:41.9]} 39... Rxg6 {[%clk
0:12:32.2]} 40. Kf2 {[%clk 0:10:37.5]} 40... Kg7 {[%clk 0:12:33.7]} 41. Kf3
{[%clk 0:10:31]} 41... f5 {[%clk 0:12:18.6]} 42. Bd4+ {[%clk 0:10:25.9]} 42...
Kh6 {[%clk 0:12:18.2]} 43. Qxf5 {[%clk 0:10:23.8]} 43... Rg5 {[%clk 0:12:07.1]}
44. Be3 {[%clk 0:10:03.8]} 44... Kg7 {[%clk 0:11:13.9]} 45. Qxg5+ {[%clk
0:10:05.8]} 45... Kf7 {[%clk 0:11:18.3]} 46. Kf4 {[%clk 0:10:02.7]} 46... Ke6
{[%clk 0:11:19.1]} 47. Qe5+ {[%clk 0:10:04.1]} 47... Kd7 {[%clk 0:11:23]} 48.
Kf5 {[%clk 0:10:06.7]} 48... Kc6 {[%clk 0:11:27.1]} 49. Ke6 {[%clk 0:10:09.7]}
49... Kb7 {[%clk 0:11:27.3]} 50. Qd5+ {[%clk 0:10:12.7]} 50... Kc7 {[%clk
0:11:29.7]} 51. Bf4+ {[%clk 0:10:16.4]} 51... Kb6 {[%clk 0:11:33.4]} 52. Kd7
{[%clk 0:10:08.8]} 52... a5 {[%clk 0:11:31]} 53. Be3+ {[%clk 0:10:08.8]} 53...
Ka6 {[%clk 0:11:33]} 54. Qc6# {[%clk 0:10:11]} 1-0

[Event "Live Chess"]
[Site "Chess.com"]
[Date "2023.09.16"]
[Round "-"]
[White "DaviLucasMoraisLima"]
[Black "kadabraxadrez"]
[Result "1-0"]
[WhiteElo "1222"]
[BlackElo "978"]
[TimeControl "900+5"]
[EndTime "7:41:36 PDT"]
[Termination "DaviLucasMoraisLima venceu por desistência"]

1. e4 {[%clk 0:15:02]} 1... e5 {[%clk 0:15:03.6]} 2. Bc4 {[%clk 0:15:02.2]} 2...
Nf6 {[%clk 0:15:04.6]} 3. Nc3 {[%clk 0:15:04.1]} 3... Bc5 {[%clk 0:15:02.4]} 4.
Nf3 {[%clk 0:15:06.1]} 4... Nc6 {[%clk 0:15:03.2]} 5. Ng5 {[%clk 0:15:08]} 5...
O-O {[%clk 0:15:05.9]} 6. d3 {[%clk 0:15:05.5]} 6... h6 {[%clk 0:15:08]} 7. Nf3
{[%clk 0:15:05.9]} 7... d6 {[%clk 0:15:07.6]} 8. O-O {[%clk 0:15:06.5]} 8... a6
{[%clk 0:14:49.9]} 9. h3 {[%clk 0:15:05.6]} 9... b5 {[%clk 0:14:49.7]} 10. Bb3
{[%clk 0:15:04.6]} 10... a5 {[%clk 0:14:50.6]} 11. a4 {[%clk 0:15:06.1]} 11...
b4 {[%clk 0:14:49.3]} 12. Nd5 {[%clk 0:15:07]} 12... Nxd5 {[%clk 0:14:51.6]} 13.
Bxd5 {[%clk 0:15:08.8]} 13... Qd7 {[%clk 0:14:44.5]} 14. Nh4 {[%clk 0:14:59.9]}
14... Qe8 {[%clk 0:14:20.8]} 15. Ng6 {[%clk 0:15:01.2]} 1-0